bitfinex/quotes_ETHUSD_20230831
["timestamp","ask_amount","ask_price","bid_price","bid_amount"]
[1693513573140,5.30659089,1657.3,1657.1,7.4536733]
[1693513574430,5.75215811,1657.3,1657.1,7.4536733]
[1693513574769,5.75215811,1657.3,1657.2,1.04902584]
[1693513574957,5.75215811,1657.3,1657.2,3.97676914]
[1693513575945,6.17561305,1657.3,1657.2,3.97676914]
[1693513577176,6.55893216,1657.3,1657.2,3.97676914]
[1693513578487,7.02334588,1657.3,1657.2,3.97676914]
[1693513579887,7.78373477,1657.3,1657.2,3.97676914]
[1693513581253,8.23713737,1657.3,1657.2,3.97676914]
[1693513582597,8.72673199,1657.3,1657.2,3.97676914]
[1693513583913,9.29620437,1657.3,1657.2,3.97676914]
[1693513585307,9.84927276,1657.3,1657.2,3.97676914]
[1693513586620,10.33296386,1657.3,1657.2,3.97676914]
[1693513586917,10.33296386,1657.3,1657.2,8.50246914]
[1693513587430,10.33296386,1657.3,1657.2,9.86862252]
[1693513587578,10.33296386,1657.3,1657.2,19.55325714]
[1693513587920,10.88291476,1657.3,1657.2,19.55325714]
[1693513589408,11.41099028,1657.3,1657.2,19.55325714]
[1693513590277,11.41099028,1657.3,1657.2,20.50310908]
[1693513592527,12.41149852,1657.3,1657.2,19.55325714]
[1693513593287,12.86361238,1657.3,1657.2,19.55325714]
[1693513593997,12.86361238,1657.3,1657.2,20.50310908]
[1693513594533,16.03134141,1657.3,1657.2,20.50310908]
[1693513595231,16.03134141,1657.3,1657.2,19.55325714]
[1693513595883,17.08139058,1657.3,1657.2,19.55325714]
[1693513597356,17.657505,1657.3,1657.2,19.55325714]
[1693513597922,17.657505,1657.3,1657.2,15.02755714]
[1693513598161,17.657505,1657.3,1657.2,13.66140376]
[1693513598950,18.25758887,1657.3,1657.2,13.66140376]
[1693513600091,18.8287361,1657.3,1657.2,13.66140376]
[1693513602146,18.8287361,1657.3,1657.2,9.13570376]
[1693513604784,18.8287361,1657.3,1657.2,10.0855557]
[1693513606081,18.8287361,1657.3,1657.2,11.6733422]
[1693513606284,18.8287361,1657.3,1657.2,16.1990422]
[1693513606850,18.8287361,1657.3,1657.2,15.56580758]
[1693513607073,18.8287361,1657.3,1657.2,16.19958492]
[1693513607900,18.8287361,1657.3,1657.2,14.61179842]
[1693513608105,18.8287361,1657.3,1657.2,10.08609842]
[1693513608617,18.8287361,1657.3,1657.2,5.56039842]
[1693513609707,18.8287361,1657.3,1657.2,2.9277433]
[1693513609913,18.8287361,1657.3,1657.2,5.56109729]
[1693513610115,18.8287361,1657.3,1657.2,4.92733513]
[1693513610483,18.8287361,1657.3,1657.2,4.61045391]
[1693513619733,18.8287361,1657.3,1657.2,4.61057441]
[1693513622463,18.8287361,1657.3,1657.2,9.13627441]
[1693513622667,18.8287361,1657.3,1657.2,4.61057441]
[1693513624276,18.8287361,1657.3,1657.2,3.97674354]
[1693513631077,18.8287361,1657.3,1657.2,8.50244354]
[1693513636958,18.8287361,1657.3,1657.2,3.97674354]
[1693513644330,24.80185798,1657.3,1657.2,1.04900024]
[1693513644487,35.37571798,1657.3,1656.9,0.63383087]
[1693513644671,37.38901798,1657.3,1656.9,3.97691707]
[1693513645017,4.52603,1657.1,1656.8,0.63383087]
[1693513645214,10.6979018,1657.2,1656.8,13.66438765]
[1693513645430,2.1166,1657.1,1656.9,5.57575348]
[1693513645582,2.1166,1657.1,1656.9,4.52651]
[1693513648033,2.4331,1657.2,1657.0,2.9277433]
[1693513648244,18.8287361,1657.3,1657.1,14.62699447]
[1693513648438,18.8287361,1657.3,1657.2,19.01654615]
[1693513648593,18.8287361,1657.3,1657.2,20.53954615]
[1693513648785,18.8287361,1657.3,1657.2,21.17337702]
[1693513650490,18.8287361,1657.3,1657.2,26.89454615]
[1693513650690,17.66408181,1657.4,1657.3,3.0]
[1693513650897,17.66408181,1657.4,1657.3,24.53989939]
[1693513651502,17.66408181,1657.4,1657.3,27.53989939]
[1693513651730,17.66408181,1657.4,1657.3,29.11339975]
[1693513651931,17.66408181,1657.4,1657.3,27.53989939]
[1693513652775,17.66408181,1657.4,1657.3,29.11339975]
[1693513652943,17.66408181,1657.4,1657.3,27.53989939]
[1693513653661,17.66408181,1657.4,1657.3,28.17258234]
[1693513654742,17.66408181,1657.4,1657.3,27.22300138]
[1693513656744,17.66408181,1657.4,1657.3,28.17258234]
[1693513657147,17.66408181,1657.4,1657.3,27.22300138]
[1693513657765,17.66408181,1657.4,1657.3,28.17258234]
[1693513657966,17.66408181,1657.4,1657.3,27.22300138]
[1693513658171,17.66408181,1657.4,1657.3,28.17258234]
[1693513659174,17.66408181,1657.4,1657.3,27.22300138]
[1693513659772,17.66408181,1657.4,1657.3,28.17258234]
[1693513660170,17.66408181,1657.4,1657.3,27.22300138]
[1693513660331,17.66408181,1657.4,1657.3,28.17258234]
[1693513661646,17.66408181,1657.4,1657.3,34.52758234]
[1693513661975,17.66408181,1657.4,1657.3,33.89489939]
[1693513663291,17.66408181,1657.4,1657.3,34.38873012]
[1693513665586,16.54541463,1657.4,1657.3,35.96223048]
[1693513665784,16.54541463,1657.4,1657.3,34.38873012]
[1693513666943,16.54541463,1657.4,1657.3,35.02049489]
[1693513667143,16.54541463,1657.4,1657.3,34.38873012]
[1693513669044,16.54541463,1657.4,1657.3,35.96223048]
[1693513669244,16.54541463,1657.4,1657.3,34.38873012]
[1693513670847,59.65750264,1657.6,1657.5,9.355]
[1693513671068,59.65750264,1657.6,1657.5,34.4257104]
[1693513671239,59.65750264,1657.6,1657.5,33.79413292]
[1693513671448,54.18945264,1657.6,1657.5,44.36501292]
[1693513671641,54.18945264,1657.6,1657.5,45.93851328]
[1693513672395,54.18945264,1657.6,1657.5,46.25880881]
[1693513672978,54.18945264,1657.6,1657.5,47.20585234]
[1693513673344,2.64e-06,1657.6,1657.5,46.25880881]
[1693513673585,2.64e-06,1657.6,1657.5,45.00222389]
[1693513673748,2.64e-06,1657.6,1657.5,46.57572425]
[1693513675859,2.64e-06,1657.6,1657.5,43.52159212]
[1693513676178,2.64e-06,1657.6,1657.5,44.99475589]
[1693513676380,2.64e-06,1657.6,1657.5,46.56759212]
[1693513680393,2.64e-06,1657.6,1657.5,44.99003701]
[1693513680596,0.101,1657.8,1657.7,27.45236]
[1693513680805,0.101,1657.8,1657.7,37.20088613]
[1693513683421,0.101,1657.8,1657.7,36.25471006]
[1693513684000,0.101,1657.8,1657.7,37.20078611]
[1693513684404,0.101,1657.8,1657.7,36.25471006]
[1693513685391,1.15433997,1657.9,1657.7,36.25471006]
[1693513685591,1.15433997,1657.9,1657.8,14.84661583]
[1693513685940,1.15433997,1657.9,1657.8,28.41879583]
[1693513687443,1.15433997,1657.9,1657.8,27.78806981]
[1693513688426,0.101,1658.0,1657.8,25.7934233]
[1693513688730,0.101,1658.0,1657.9,6.16854327]
[1693513689022,0.101,1658.0,1657.9,20.21991327]
[1693513690740,4.19886703,1658.1,1657.9,20.21991327]
[1693513690940,4.19886703,1658.1,1658.0,1.048555]
[1693513691143,2.07936703,1658.1,1658.0,8.4998183]
[1693513691349,2.07936703,1658.1,1658.0,3.9762983]
[1693513693410,2.07936703,1658.1,1658.0,4.60706209]
[1693513693736,2.07936703,1658.1,1658.0,6.06712086]
[1693513694434,2.07936703,1658.1,1658.0,10.59064086]
[1693513694735,2.07936703,1658.1,1658.0,9.13058209]
[1693513694911,2.07936703,1658.1,1658.0,4.60706209]
[1693513694912,6.60260703,1658.1,1658.0,4.60706209]
[1693513695229,2.07936703,1658.1,1658.0,4.60706209]
[1693513695542,2.07936703,1658.1,1658.0,3.9762983]
[1693513697036,2.07936703,1658.1,1658.0,4.60706209]
[1693513697239,2.07936703,1658.1,1658.0,11.08441045]
[1693513697415,2.07936703,1658.1,1658.0,15.60793045]
[1693513697719,2.07936703,1658.1,1658.0,14.66178486]
[1693513698826,2.07936703,1658.1,1658.0,10.13826486]
[1693513699236,2.07936703,1658.1,1658.0,4.60706209]
[1693513703111,2.07936703,1658.1,1658.0,9.13058209]
[1693513704599,2.07936703,1658.1,1658.0,8.4998183]
[1693513707436,2.07936703,1658.1,1658.0,7.4512633]
[1693513717403,2.07936703,1658.1,1658.0,2.9277433]
[1693513720583,2.07936703,1658.1,1658.0,3.97633359]
[1693513721494,2.07936703,1658.1,1658.0,2.9277433]
[1693513723902,2.07936703,1658.1,1658.0,3.97632409]
[1693513724399,2.07936703,1658.1,1658.0,3.97632568]
[1693513724698,2.07936703,1658.1,1658.0,2.9277433]
[1693513727406,6.60260703,1658.1,1658.0,2.9277433]
[1693513729622,2.07936703,1658.1,1658.0,2.9277433]
[1693513730413,6.60260703,1658.1,1658.0,2.9277433]
[1693513730614,7.90144973,1658.1,1657.8,0.63076379]
[1693513730816,7.90144973,1658.1,1657.8,2.9277433]
[1693513731514,12.42468973,1658.1,1657.8,2.9277433]
[1693513731716,13.94768973,1658.1,1657.8,2.9277433]
[1693513733385,9.42444973,1658.1,1657.8,2.9277433]
[1693513733589,0.94244497,1658.0,1657.8,2.9277433]
[1693513733918,5.46598497,1658.0,1657.8,2.9277433]
[1693513734219,7.34428497,1658.0,1657.8,2.9277433]
[1693513735918,2.82074497,1658.0,1657.8,2.9277433]
[1693513736120,7.34427497,1658.0,1657.8,2.9277433]
[1693513737799,6.40183,1658.0,1657.8,2.9277433]
[1693513757220,2.07936703,1658.1,1657.9,2.9277433]
[1693513757422,4.3675,1658.3,1657.9,2.9277433]
[1693513757650,2.3848,1658.3,1658.0,9.04704]
[1693513757940,2.3848,1658.3,1658.1,7.4509133]
[1693513763433,6.90755,1658.3,1658.1,2.9277433]
[1693513764125,8.95895,1658.3,1658.1,2.9277433]
[1693513773538,4.4362,1658.3,1658.1,2.9277433]
[1693513773740,2.3848,1658.3,1658.1,2.9277433]
[1693513775367,6.90751,1658.3,1658.1,2.9277433]
[1693513778155,2.3848,1658.3,1658.1,2.9277433]
[1693513778374,6.48045,1658.4,1658.1,7.4509733]
[1693513778869,6.48045,1658.4,1658.1,2.9277433]
[1693513785978,11.00304,1658.4,1658.1,2.9277433]
[1693513787279,21.38128803,1658.4,1657.8,3.63303378]
[1693513787444,21.38128803,1658.4,1657.9,2.9277433]
[1693513787445,29.86327913,1658.4,1657.9,2.9277433]
[1693513787653,4.4821911,1658.3,1657.9,2.9277433]
[1693513787959,13.56909,1658.2,1657.9,2.9277433]
[1693513788158,10.403649,1658.1,1657.9,2.9277433]
[1693513788359,5.880159,1658.1,1657.9,2.9277433]
[1693513800208,5.880159,1658.1,1657.6,12.96217483]
[1693513800209,6.355,1658.0,1657.6,0.63306988]
[1693513800508,15.09479,1657.9,1657.4,5.15821988]
[1693513800708,15.09479,1657.9,1657.5,1.04880995]
[1693513800709,19.97179,1657.9,1657.5,1.04880995]
[1693513800880,15.44786,1657.9,1657.5,1.04880995]
[1693513801509,15.44786,1657.9,1657.4,8.08621476]
[1693513801673,15.44786,1657.9,1657.5,1.04881026]
[1693513801876,6.069006,1657.8,1657.5,1.04881026]
[1693513802976,1.544786,1657.8,1657.5,5.57368026]
[1693513803207,1.544786,1657.8,1657.5,4.52487]
[1693513803715,6.068856,1657.8,1657.5,4.52487]
[1693513804007,1.544786,1657.8,1657.5,4.52487]
[1693513804212,15.44793,1657.9,1657.5,4.52487]
[1693513805611,13.92493,1657.9,1657.5,4.52487]
[1693513806317,13.92493,1657.9,1657.4,12.61114476]
[1693513806612,13.92493,1657.9,1657.5,1.04881028]
[1693513807512,13.92493,1657.9,1657.4,11.9776933]
[1693513807827,5.916763,1657.8,1657.4,2.9277433]
[1693513808018,10.441033,1657.8,1657.4,2.9277433]
[1693513812984,1.523,1657.7,1657.4,2.9277433]
[1693513813299,15.09683,1657.6,1657.2,0.63345146]
[1693513813617,4.52515,1657.4,1657.3,2.9277433]
[1693513814011,9.0503,1657.4,1657.3,2.9277433]
[1693513814421,4.52515,1657.4,1657.3,2.9277433]
[1693513819226,9.0503,1657.4,1657.1,1.73865305]
[1693513819438,9.0503,1657.4,1657.1,4.66639635]
[1693513819439,13.57545,1657.4,1657.1,4.66639635]
[1693513819607,0.90503,1657.3,1657.1,4.66639635]
[1693513819826,4.5257,1657.2,1657.1,1.73865305]
[1693513820029,9.0514,1657.2,1656.9,0.63345146]
[1693513820246,9.0514,1657.2,1656.9,4.61032425]
[1693513820247,11.476,1657.2,1656.9,4.61032425]
[1693513820548,17.855,1657.2,1657.0,1.04914826]
[1693513820753,13.57875,1657.0,1656.7,0.63345146]
[1693513820918,13.57875,1657.0,1656.8,2.9277433]
[1693513822014,9.0525,1657.0,1656.8,2.9277433]
[1693513822306,15.236601,1657.0,1656.8,2.9277433]
[1693513823533,14.60706121,1657.0,1656.8,2.9277433]
[1693513824655,14.60706121,1657.0,1656.9,1.04922888]
[1693513825663,12.94921021,1657.0,1656.9,1.04922888]
[1693513826772,12.94921021,1657.0,1656.8,2.9277433]
[1693513826969,12.94921021,1657.0,1656.7,1.58362866]
[1693513827141,14.95161021,1657.0,1656.8,1.04925818]
[1693513827644,14.95161021,1657.0,1656.8,1.68270964]
[1693513827954,14.95161021,1657.0,1656.9,1.04925192]
[1693513828157,16.74677123,1657.0,1656.9,1.04925192]
[1693513828320,16.74677123,1657.0,1656.8,1.67964483]
[1693513828519,17.37631102,1657.0,1656.9,1.04925192]
[1693513828848,17.37631102,1657.0,1656.8,1.67964483]
[1693513829177,17.37631102,1657.0,1656.9,1.04925192]
[1693513829566,17.37631102,1657.0,1656.8,0.63039291]
[1693513831568,17.37631102,1657.0,1656.8,1.57598227]
[1693513832982,17.37631102,1657.0,1656.9,1.67964483]
[1693513833188,17.37631102,1657.0,1656.9,0.63039291]
[1693513837199,12.85006102,1657.0,1656.9,0.63039291]
[1693513840260,12.85006102,1657.0,1656.9,1.67964483]
[1693513840571,12.85006102,1657.0,1656.9,0.63039291]
[1693513841777,12.85006102,1657.0,1656.9,1.67964483]
[1693513842177,11.0549,1657.0,1656.9,0.63039291]
[1693513843976,11.0549,1657.0,1656.9,1.57598227]
[1693513844899,11.0549,1657.0,1656.9,0.63039291]
[1693513845083,11.0549,1657.0,1656.9,1.57598227]
[1693513845988,11.0549,1657.0,1656.9,0.94558936]
[1693513846290,14.35892428,1657.1,1656.9,0.94558936]
[1693513846291,7.52601,1657.1,1656.9,1.99484128]
[1693513846453,7.52601,1657.1,1657.0,1.68035108]
[1693513846655,12.05216,1657.1,1657.0,0.63109916]
[1693513846970,12.05216,1657.1,1657.0,1.68035108]
[1693513847172,12.05216,1657.1,1657.0,0.63109916]
[1693513848575,10.93302036,1657.1,1657.0,0.63109916]
[1693513849295,10.93302036,1657.1,1657.0,1.68035108]
[1693513849805,10.93302036,1657.1,1657.0,0.63109916]
[1693513850010,10.93302036,1657.1,1657.0,1.68035108]
[1693513850603,10.93302036,1657.1,1657.0,0.63109916]
[1693513853696,10.93302036,1657.1,1656.9,2.62594044]
[1693513853896,10.93302036,1657.1,1657.0,1.04925192]
[1693513854075,10.93302036,1657.1,1656.9,0.63109916]
[1693513854407,10.93302036,1657.1,1656.9,1.57668852]
[1693513855506,10.93302036,1657.1,1657.0,1.68035108]
[1693513856077,10.93302036,1657.1,1657.0,1.04925192]
[1693513856480,10.93302036,1657.1,1656.9,1.57668852]
[1693513856785,10.93302036,1657.1,1657.0,1.04925192]
[1693513857406,10.93302036,1657.1,1656.9,1.57668852]
[1693513857617,10.93302036,1657.1,1657.0,1.68035108]
[1693513857981,10.93302036,1657.1,1657.0,1.04925192]
[1693513858183,10.93302036,1657.1,1656.9,1.57668852]
[1693513858583,10.93302036,1657.1,1657.0,1.68035108]
[1693513858882,13.5447624,1657.1,1657.0,1.68035108]
[1693513859119,13.5447624,1657.1,1657.0,0.63109916]
[1693513859903,13.5447624,1657.1,1656.9,1.57668852]
[1693513860618,13.5447624,1657.1,1657.0,0.63109916]
[1693513861320,18.0709124,1657.1,1657.0,0.63109916]
[1693513865526,18.0709124,1657.1,1657.0,1.68035108]
[1693513865725,18.0709124,1657.1,1657.0,0.63109916]
[1693513867213,10.93302036,1657.1,1657.0,0.63109916]
[1693513867601,10.93302036,1657.1,1657.0,1.68035108]
[1693513867798,10.93302036,1657.1,1657.0,0.63109916]
[1693513868847,10.93302036,1657.1,1657.0,1.68035108]
[1693513869048,10.93302036,1657.1,1657.0,0.63109916]
[1693513869530,10.93302036,1657.1,1656.9,1.57668852]
[1693513870543,10.93302036,1657.1,1656.9,0.63109916]
[1693513870732,10.93302036,1657.1,1656.9,1.68341379]
[1693513870892,10.93302036,1657.1,1657.0,1.04920482]
[1693513871097,10.93302036,1657.1,1656.9,0.63420897]
[1693513872398,10.93302036,1657.1,1656.8,2.63472724]
[1693513872598,10.93302036,1657.1,1656.8,5.56247054]
[1693513872800,10.93302036,1657.1,1656.9,1.04920482]
[1693513873334,15.45899036,1657.1,1656.9,1.04920482]
[1693513873523,10.93284036,1657.1,1656.9,1.04920482]
[1693513874800,15.45881036,1657.1,1656.9,1.04920482]
[1693513875336,1.9666,1657.3,1656.9,9.69383414]
[1693513875541,5.78857658,1657.4,1657.0,6.13415709]
[1693513875542,4.52531,1657.4,1657.0,6.13415709]
[1693513875834,48.42,1657.5,1657.1,10.73516379]
[1693513876038,48.42,1657.5,1657.2,5.0504645]
[1693513876208,48.42,1657.5,1657.2,8.52675968]
[1693513876414,52.94491,1657.5,1657.2,8.52675968]
[1693513880027,4.52491,1657.5,1657.2,8.52675968]
[1693513880331,4.52491,1657.5,1657.3,0.85267597]
[1693513880540,9.04948,1657.6,1657.3,3.78041927]
[1693513880935,4.52462,1657.6,1657.3,3.78041927]
[1693513881137,4.52462,1657.6,1657.3,8.30582927]
[1693513881735,9.04892,1657.7,1657.3,8.30582927]
[1693513881958,9.04892,1657.7,1657.4,0.83058293]
[1693513885938,9.04892,1657.7,1657.3,8.30582927]
[1693513894379,9.04892,1657.7,1657.4,0.18569864]
[1693513894771,9.04892,1657.7,1657.3,8.30582927]
[1693513895481,1.888,1657.6,1657.3,8.30582927]
[1693513895862,4.52446,1657.7,1657.3,8.30582927]
[1693513896063,4.52446,1657.7,1657.4,1.01665597]
[1693513896859,4.52446,1657.7,1657.4,5.54177597]
[1693513905867,4.52446,1657.7,1657.4,4.71119304]
[1693513906269,9.04895,1657.7,1657.4,0.18607304]
[1693513914471,9.04895,1657.7,1657.4,4.71121304]
[1693513917808,9.04895,1657.7,1657.4,0.18607304]
[1693513918514,4.52446,1657.7,1657.4,0.18607304]
[1693513918696,4.52446,1657.7,1657.4,4.71100304]
[1693513920219,4.52446,1657.7,1657.4,0.18607304]
[1693513920518,9.04868,1657.7,1657.4,0.18607304]
[1693513920689,11.04186117,1657.7,1657.4,0.18607304]
[1693513922804,6.51752117,1657.7,1657.4,0.18607304]
[1693513923522,11.04186117,1657.7,1657.4,0.18607304]
[1693513925088,22.52519227,1657.7,1657.4,0.18607304]
[1693513925293,8.4819911,1657.6,1657.4,0.18607304]
[1693513925509,5.37307911,1657.5,1657.1,9.68589897]
[1693513925820,7.82547911,1657.5,1657.2,1.04903838]
[1693513926022,1.9774,1657.4,1657.2,1.04903838]
[1693513926591,6.50261,1657.4,1657.2,1.04903838]
[1693513926792,6.50261,1657.4,1657.1,2.9277433]
[1693513929117,6.50261,1657.4,1657.1,7.4537133]
[1693513930019,6.50261,1657.4,1657.2,1.04903761]
[1693513930524,4.52521,1657.4,1657.2,3.97678091]
[1693513930728,6.97728,1657.5,1657.2,13.34533529]
[1693513930729,4.3142,1657.5,1657.2,13.34533529]
[1693513931523,4.52448,1657.7,1657.3,3.97670188]
[1693513931825,2.4745,1657.6,1657.4,4.52512]
[1693513933532,40.12942167,1657.8,1657.4,13.10871249]
[1693513933713,44.1516,1657.8,1657.4,8.58356249]
[1693513934321,13.5516,1657.8,1657.4,8.58356249]
[1693513934698,13.5516,1657.8,1657.4,4.05844249]
[1693513935027,18.07582,1657.8,1657.4,4.05844249]
[1693513936226,18.07582,1657.8,1657.5,0.18585166]
[1693513936422,23.13036402,1657.8,1657.5,0.18585166]
[1693513936627,2.1269911,1657.7,1657.5,0.18585166]
[1693513936829,9.04922,1657.6,1657.5,0.18585166]
[1693513937027,13.57383,1657.6,1657.1,6.73167897]
[1693513937324,2.523,1657.5,1657.2,4.16299087]
[1693513937631,4.52515,1657.4,1657.2,3.11399283]
[1693513941730,13.43659,1657.5,1657.2,7.63965283]
[1693513941939,8.91158,1657.5,1657.2,7.63965283]
[1693513943645,8.91158,1657.5,1657.2,3.11399283]
[1693513957858,13.43658,1657.5,1657.2,3.11399283]
[1693513961464,7.878,1657.3,1657.2,0.18624953]
[1693513961662,21.45429,1657.3,1657.2,0.18624953]
[1693513961963,25.0582811,1657.3,1656.7,0.63420897]
[1693513962135,1.523,1657.1,1656.7,4.61122324]
[1693513962473,9.0526,1657.0,1656.7,2.9277433]
[1693513962933,6.9287,1657.0,1656.7,7.4547533]
[1693513963651,2.4024,1657.0,1656.7,11.9818233]
[1693513965051,6.92867,1657.0,1656.7,7.4547533]
[1693513965224,8.679056,1657.0,1656.7,7.4547533]
[1693513965826,8.679056,1657.0,1656.7,2.9277433]
[1693513966056,13.205326,1657.0,1656.7,2.9277433]
[1693513966861,17.731596,1657.0,1656.6,0.63420897]
[1693513967052,1.523,1656.8,1656.4,1.68552242]
[1693513967253,6.04997,1656.8,1656.5,3.97711594]
[1693513967559,6.04997,1656.8,1656.5,7.4553433]
[1693513967768,8.40907,1656.8,1656.5,7.4553433]
[1693513968061,6.88607,1656.8,1656.5,7.4553433]
[1693513968235,2.3591,1656.8,1656.6,1.04934852]
[1693513968431,2.3591,1656.8,1656.6,5.57667852]
[1693513968631,2.3591,1656.8,1656.6,4.52733]
[1693513973465,1.9503,1657.0,1656.6,17.77144153]
[1693513973665,4.3164,1657.0,1656.7,1.0493044]
[1693513973968,4.3164,1657.0,1656.7,5.5761744]
[1693513974170,4.3164,1657.0,1656.7,4.52687]
[1693513974332,8.84267,1657.0,1656.7,4.52687]
[1693513975165,10.01877402,1657.0,1656.7,4.52687]
[1693513975674,4.3164,1657.0,1656.7,9.05394]
[1693513975871,2.3661,1657.0,1656.7,11.9816833]
[1693513976976,2.3661,1657.0,1656.4,0.1]
[1693513976977,1.523,1656.8,1656.4,0.1]
[1693513977155,1.523,1656.5,1656.4,0.1]
[1693513977344,15.10583,1656.5,1656.4,0.1]
[1693513977544,16.616413,1656.5,1656.4,0.1]
[1693513978061,12.088803,1656.5,1656.4,0.1]
[1693513978277,15.093413,1656.5,1656.3,0.1]
[1693513978450,24.46167,1656.4,1656.3,0.1]
[1693513979860,27.3894133,1656.4,1656.3,0.1]
[1693513980085,27.3894133,1656.4,1656.2,0.1]
[1693513980086,31.96846503,1656.4,1656.2,0.1]
[1693513980261,31.96846503,1656.4,1656.1,0.1]
[1693513980262,6.355,1656.2,1656.1,0.1]
[1693513980461,34.6194544,1656.2,1655.8,0.1]
[1693513980687,6.355,1656.0,1655.8,0.1]
[1693513980995,21.46575,1655.9,1655.8,0.1]
[1693513981171,24.46575,1655.9,1655.8,0.1]
[1693513982164,28.7916291,1655.9,1655.7,0.1]
[1693513982385,18.41406,1655.8,1655.7,0.1]
[1693513982555,23.52120391,1655.8,1655.7,0.1]
[1693513983178,24.00120391,1655.8,1655.7,0.1]
[1693513984059,27.53293831,1655.8,1655.7,0.1]
[1693513984260,24.47528,1655.6,1655.5,0.1]
[1693513984487,33.0100144,1655.6,1655.5,0.1]
[1693513984690,36.97291584,1655.6,1655.5,0.1]
[1693513985684,32.44284584,1655.6,1655.5,0.1]
[1693513987111,36.97291584,1655.6,1655.5,0.1]
[1693513987465,36.34278376,1655.6,1655.5,0.1]
[1693513988271,31.81271376,1655.6,1655.5,0.1]
[1693513989806,3.0,1655.4,1655.2,0.1]
[1693513990020,26.0543433,1655.3,1655.2,0.1]
[1693513990300,26.6583344,1655.3,1655.2,0.1]
[1693513991497,9.295888,1655.3,1655.2,0.1]
[1693513991695,10.826788,1655.3,1655.2,0.1]
[1693513991887,12.3625498,1655.3,1655.2,0.1]
[1693513993297,15.3625498,1655.3,1655.2,0.1]
[1693513993625,7.772888,1655.3,1655.2,0.1]
[1693513993801,7.38528175,1655.6,1655.3,0.87831854]
[1693513994011,4.52985,1655.7,1655.3,5.40916854]
[1693513994323,4.52985,1655.7,1655.4,0.54091685]
[1693513994728,4.52985,1655.7,1655.3,5.40916854]
[1693513995221,9.0597,1655.7,1655.3,5.40916854]
[1693513995422,10.5827,1655.7,1655.3,5.40916854]
[1693513995628,10.5827,1655.7,1655.3,0.87831854]
[1693513995851,15.11255,1655.7,1655.3,0.87831854]
[1693513995996,17.1239582,1655.7,1655.3,0.87831854]
[1693513999316,15.11255,1655.7,1655.3,0.87831854]
[1693513999811,10.88482,1655.7,1655.3,9.94008854]
[1693514000403,10.03709,1655.8,1655.3,9.94008854]
[1693514000595,3.0,1655.7,1655.3,17.39873184]
[1693514000935,3.0,1655.7,1655.4,1.73987318]
[1693514001231,7.4798,1655.7,1655.4,6.27028318]
[1693514001939,12.0096,1655.7,1655.4,6.27028318]
[1693514002100,2.4004,1656.0,1655.4,19.78226648]
[1693514002502,17.81357,1656.0,1655.4,18.25926648]
[1693514002714,17.81357,1656.0,1655.5,0.757108]
[1693514002901,17.81357,1656.0,1655.5,5.287228]
[1693514003105,17.81357,1656.0,1655.5,9.817578]
[1693514003799,15.4126,1656.1,1655.6,2.9277433]
[1693514004002,15.4126,1656.1,1655.6,11.9876133]
[1693514004003,4.52923,1656.0,1655.6,11.9876133]
[1693514004202,4.52923,1656.0,1655.7,5.72855133]
[1693514004460,8.92513748,1656.2,1655.7,13.18609463]
[1693514004601,3.91681164,1656.2,1655.9,13.58765]
[1693514004901,3.91681164,1656.2,1655.9,9.0584]
[1693514005101,3.91681164,1656.2,1655.9,14.88586985]
[1693514005323,3.91681164,1656.2,1656.0,2.9277433]
[1693514005607,4.52673,1656.9,1656.2,15.26401615]
[1693514005805,4.52673,1656.9,1656.3,4.4507433]
[1693514006038,4.52673,1656.9,1656.4,9.05534]
[1693514006213,4.52673,1656.9,1656.4,13.18184463]
[1693514006414,4.52673,1656.9,1656.4,17.70973463]
[1693514006634,4.52673,1656.9,1656.3,1.523]
[1693514006635,8.4819911,1656.8,1656.2,6.20757615]
[1693514006941,9.05438,1656.7,1656.3,7.4559033]
[1693514007839,9.05438,1656.7,1656.3,11.9840633]
[1693514009107,9.355,1656.9,1656.3,16.5122233]
[1693514009432,13.88152,1656.9,1656.3,16.5122233]
[1693514009736,13.88152,1656.9,1656.5,9.05496]
[1693514010316,18.40804,1656.9,1656.5,9.05496]
[1693514010907,12.05304,1656.9,1656.5,9.05496]
[1693514011213,4.52652,1656.9,1656.5,11.9827033]
[1693514011419,2.3082,1657.1,1656.6,2.9277433]
[1693514011726,6.83424,1657.1,1656.7,9.05386]
[1693514011932,6.83424,1657.1,1656.7,12.82736215]
[1693514013022,3.0,1657.2,1656.8,2.9277433]
[1693514013210,7.52572,1657.2,1656.9,4.52647]
[1693514013410,12.05144,1657.2,1656.9,4.52647]
[1693514014011,9.05144,1657.2,1656.9,4.52647]
[1693514014629,9.05144,1657.2,1656.8,11.9810333]
[1693514014944,11.25754,1657.2,1656.8,11.9810333]
[1693514015346,9.05144,1657.2,1656.8,11.9810333]
[1693514016024,3.0,1657.3,1656.8,16.5078233]
[1693514016418,4.52548,1657.3,1656.8,16.5078233]
[1693514016944,9.05096,1657.3,1656.8,16.5078233]
[1693514017146,15.88630421,1657.3,1656.8,2.9277433]
[1693514017345,2.7329911,1657.2,1656.8,2.9277433]
[1693514017547,9.05205,1657.1,1656.8,2.9277433]
[1693514018315,4.52602,1657.1,1656.8,2.9277433]
[1693514018516,0.101,1657.4,1657.1,1.1190842]
[1693514018743,0.101,1657.4,1657.2,16.5048433]
[1693514018912,0.101,1657.4,1657.2,11.9791433]
[1693514019312,0.101,1657.4,1657.2,7.4534433]
[1693514019643,0.101,1657.4,1657.2,11.9791433]
[1693514020250,0.101,1657.4,1657.2,7.4534433]
[1693514020947,0.101,1657.4,1657.2,11.9791433]
[1693514021247,0.101,1657.4,1657.3,1.19791433]
[1693514021440,4.62615,1657.4,1657.3,2.9277433]
[1693514021825,0.101,1657.4,1657.3,2.9277433]
[1693514023501,4.62615,1657.4,1657.3,2.9277433]
[1693514024224,0.101,1657.4,1657.3,2.9277433]
[1693514024626,0.101,1657.4,1657.3,5.9277433]
[1693514024826,0.101,1657.6,1657.5,3.0]
[1693514025045,0.101,1657.6,1657.5,24.0272633]
[1693514025249,0.101,1657.6,1657.5,16.5023833]
[1693514027131,0.101,1657.6,1657.5,19.5023833]
[1693514027332,4.52354,1658.0,1657.5,19.5023833]
[1693514027577,4.52354,1658.0,1657.6,4.83195015]
[1693514027724,4.52354,1658.0,1657.7,9.04861]
[1693514027921,4.52354,1658.0,1657.7,11.9763533]
[1693514028128,9.04719,1658.0,1657.7,7.4520233]
[1693514029041,4.52354,1658.0,1657.7,7.4520233]
[1693514029525,4.52354,1658.0,1657.7,11.9763633]